bitfinex/quotes_SOLUSD_20251006
["timestamp","ask_amount","ask_price","bid_price","bid_amount"]
[1759730002534,0.7,231.77,231.71,51.54]
[1759730002750,4.31480842,231.76,231.71,51.54]
[1759730002932,5.01480842,231.76,231.71,51.54]
[1759730003435,0.7,231.76,231.71,55.17564567]
[1759730003735,2.11027396,231.83,231.71,55.17564567]
[1759730003736,5.0137442,231.82,231.72,0.68]
[1759730004809,0.7,231.82,231.73,4.31536702]
[1759730005005,0.7,231.82,231.74,21.48]
[1759730005238,0.7,231.82,231.75,30.7]
[1759730005833,0.7,231.82,231.76,0.68]
[1759730006904,0.7,231.82,231.76,4.9946329]
[1759730008323,0.7,231.82,231.77,4.99443625]
[1759730008823,0.7,231.82,231.78,20.8]
[1759730009020,4.31350558,231.83,231.79,30.7]
[1759730009427,5.01350558,231.83,231.79,30.02]
[1759730010332,0.7,231.82,231.79,30.02]
[1759730010534,0.7,231.81,231.79,30.02]
[1759730011256,4.31350558,231.83,231.79,30.02]
[1759730011429,0.7,231.82,231.79,30.02]
[1759730013234,4.31387774,231.81,231.79,30.02]
[1759730013644,4.31387774,231.81,231.79,30.7]
[1759730014127,4.31387774,231.81,231.79,30.02]
[1759730014520,4.31350558,231.83,231.79,30.02]
[1759730014730,5.01350558,231.83,231.79,30.02]
[1759730014948,0.7,231.82,231.79,30.02]
[1759730015743,5.01385545,231.82,231.79,30.02]
[1759730016343,4.31385545,231.82,231.79,30.02]
[1759730018346,4.31349622,231.84,231.8,0.69]
[1759730018543,5.01349622,231.84,231.8,0.69]
[1759730018742,5.01349622,231.84,231.79,30.02]
[1759730018943,5.01349622,231.84,231.79,30.71]
[1759730019454,15.09609196,231.85,231.79,30.71]
[1759730019657,0.7,231.84,231.79,30.71]
[1759730019951,0.7,231.83,231.77,21.49]
[1759730020158,0.7,231.82,231.7,20.8]
[1759730020344,0.7,231.81,231.74,21.49]
[1759730020544,79.1,231.84,231.75,30.0]
[1759730020545,0.7,231.8,231.75,30.0]
[1759730020736,0.7,231.79,231.75,30.0]
[1759730021162,0.7,231.78,231.75,30.0]
[1759730021663,0.7,231.8,231.75,30.69]
[1759730022657,10.87647521,231.82,231.75,30.69]
[1759730022852,11.57647521,231.82,231.75,30.69]
[1759730023044,15.7985721,231.81,231.75,30.0]
[1759730023246,0.7,231.8,231.75,30.0]
[1759730023459,0.7,231.79,231.75,30.0]
[1759730024054,4.3144361,231.78,231.75,30.0]
[1759730024256,4.3144361,231.78,231.75,30.69]
[1759730025459,4.3144361,231.78,231.75,30.0]
[1759730026659,4.3144361,231.78,231.75,30.69]
[1759730027252,4.31424996,231.79,231.75,30.69]
[1759730027436,4.31424996,231.79,231.76,0.69]
[1759730028060,4.31424996,231.79,231.75,30.0]
[1759730028233,4.31424996,231.79,231.75,30.72]
[1759730029860,10.78469436,231.81,231.76,20.8]
[1759730030160,0.69,231.8,231.76,50.8]
[1759730032138,10.78469436,231.81,231.76,50.8]
[1759730032461,0.69,231.8,231.76,50.8]
[1759730034062,0.69,231.79,231.76,50.8]
[1759730034258,4.31442677,231.79,231.76,50.8]
[1759730037869,0.69,231.8,231.76,51.52]
[1759730038053,0.69,231.8,231.76,50.8]
[1759730038547,10.87647521,231.84,231.77,0.72]
[1759730038749,10.87647521,231.84,231.78,34.31440519]
[1759730038750,15.18990566,231.84,231.78,34.31440519]
[1759730038946,15.18990566,231.84,231.79,0.72]
[1759730039139,15.18990566,231.84,231.8,30.0]
[1759730039343,0.69,231.83,231.8,30.0]
[1759730039848,15.18990566,231.84,231.8,30.0]
[1759730040053,15.87990566,231.84,231.8,30.0]
[1759730040467,15.18990566,231.84,231.8,30.0]
[1759730040654,0.69,231.83,231.8,30.0]
[1759730040970,4.31369165,231.82,231.8,30.0]
[1759730041963,22.15052785,231.9,231.8,30.0]
[1759730041964,15.18923667,231.87,231.81,0.72]
[1759730042157,15.87923667,231.87,231.81,0.72]
[1759730042339,28.8250584,231.87,231.81,0.72]
[1759730042539,39.60696205,231.87,231.8,30.0]
[1759730042772,0.69,231.86,231.8,30.0]
[1759730043060,5.00313349,231.85,231.8,30.0]
[1759730043257,5.00313349,231.85,231.8,30.72]
[1759730043663,4.31313349,231.85,231.8,30.72]
[1759730043970,5.00348886,231.84,231.8,30.72]
[1759730044468,12.94582173,231.87,231.83,20.8]
[1759730044764,10.87647521,231.92,231.84,30.72]
[1759730044969,10.87647521,231.92,231.85,30.72]
[1759730045277,10.87647521,231.92,231.86,0.72]
[1759730046071,4.31201759,231.91,231.86,0.72]
[1759730046262,4.31201759,231.91,231.87,0.72]
[1759730046476,4.31201759,231.91,231.88,30.0]
[1759730048452,15.09099845,231.93,231.88,30.0]
[1759730048754,0.69,231.92,231.88,30.0]
[1759730048968,0.69,231.91,231.88,30.0]
[1759730049554,15.09099845,231.93,231.88,30.0]
[1759730049754,0.69,231.92,231.88,30.0]
[1759730049954,15.09099845,231.93,231.88,30.0]
[1759730050169,0.69,231.91,231.88,30.0]
[1759730050847,4.31220353,231.9,231.88,30.0]
[1759730051857,4.31183166,231.92,231.88,30.0]
[1759730052165,4.31164084,231.94,231.89,0.72]
[1759730052672,4.31164084,231.94,231.9,0.72]
[1759730052974,4.31127398,231.95,231.91,0.72]
[1759730053173,4.31127398,231.95,231.92,29.98]
[1759730053664,5.00127398,231.95,231.92,29.98]
[1759730054478,0.69,231.94,231.93,29.98]
[1759730054663,0.69,231.94,231.92,29.98]
[1759730054847,5.00164575,231.93,231.92,29.98]
[1759730058379,15.78076013,231.93,231.87,0.72]
[1759730058549,15.78076013,231.93,231.88,29.98]
[1759730058749,0.71,231.92,231.88,29.98]
[1759730058968,0.71,231.91,231.88,29.98]
[1759730059160,15.09076013,231.93,231.88,29.98]
[1759730059351,0.71,231.9,231.88,29.98]
[1759730059570,4.31238949,231.89,231.88,29.98]
[1759730060287,5.02238949,231.89,231.84,20.8]
[1759730060466,5.02238949,231.89,231.83,10.78018377]
[1759730060467,0.71,231.88,231.83,0.66]
[1759730060655,0.71,231.87,231.85,29.98]
[1759730060973,15.80336322,231.89,231.85,29.98]
[1759730061153,0.71,231.88,231.85,29.98]
[1759730061561,4.31276146,231.87,231.85,29.98]
[1759730065479,0.1,232.06,231.98,2.24868124]
[1759730065683,0.1,232.16,232.06,20.8]
[1759730065990,0.1,232.16,232.1,20.8]
[1759730066492,0.1,232.16,232.1,25.10846631]
[1759730066658,0.1,232.16,232.11,20.8]
[1759730066858,0.1,232.16,232.12,31.0]
[1759730070200,4.40739718,232.16,232.12,31.0]
[1759730070374,4.40739718,232.16,232.13,30.94]
[1759730072673,0.1,232.16,232.13,30.94]
[1759730072995,4.40742734,232.16,232.13,30.94]
[1759730076968,4.40742734,232.16,232.12,10.76695594]
[1759730077174,5.09742734,232.16,232.14,30.88]
[1759730077389,4.40742734,232.16,232.15,30.88]
[1759730079877,5.09742734,232.16,232.15,30.88]
[1759730080197,5.09742734,232.16,232.15,30.84]
[1759730080397,15.8658629,232.16,232.11,4.40742734]
[1759730080601,15.8658629,232.16,232.12,30.84]
[1759730080602,0.69,232.15,232.12,30.84]
[1759730080767,0.69,232.14,232.13,30.84]
[1759730081898,4.99774532,232.14,232.13,30.84]
[1759730091498,15.76710863,232.14,232.1,20.8]
[1759730091693,0.69,232.13,232.11,30.74]
[1759730092095,0.69,232.12,232.11,30.74]
[1759730093997,4.99811649,232.12,232.11,30.74]
[1759730096613,4.99811649,232.12,232.11,30.7]
[1759730100819,4.30811649,232.12,232.11,30.7]
[1759730101010,4.99811649,232.12,232.11,30.7]
[1759730101216,4.30782439,232.14,232.11,30.7]
[1759730101426,0.1,232.16,232.11,30.7]
[1759730101587,4.40737901,232.16,232.11,30.7]
[1759730101995,4.40737901,232.16,232.12,2.82764475]
[1759730102212,4.40737901,232.16,232.13,33.50764475]
[1759730102213,0.1,232.16,232.13,33.50764475]
[1759730102530,0.1,232.16,232.14,33.48764475]
[1759730102717,0.1,232.16,232.14,30.66]
[1759730103218,4.40738752,232.16,232.14,30.66]
[1759730103419,0.1,232.16,232.14,30.66]
[1759730103997,4.40743777,232.16,232.14,30.66]
[1759730105103,5.09743777,232.16,232.14,30.66]
[1759730105296,5.09743777,232.16,232.15,30.64]
[1759730106314,5.09743777,232.16,232.15,33.47788583]
[1759730108813,4.40743777,232.16,232.15,33.47788583]
[1759730109313,4.40743777,232.16,232.15,36.15419182]
[1759730109717,0.1,232.16,232.15,36.15419182]
[1759730110416,0.1,232.16,232.15,33.47788583]
[1759730110711,4.40737422,232.16,232.15,33.47788583]
[1759730111423,7.63051371,232.16,232.15,33.47788583]
[1759730111600,3.32313949,232.16,232.15,33.47788583]
[1759730112436,7.63051371,232.16,232.15,33.47788583]
[1759730114010,3.32313949,232.16,232.15,33.47788583]
[1759730115019,0.1,232.19,232.15,37.78544559]
[1759730115230,0.1,232.19,232.16,6.41388765]
[1759730115425,0.1,232.19,232.17,33.39788583]
[1759730115631,5.09688417,232.19,232.18,33.39788583]
[1759730116229,0.79,232.19,232.18,33.39788583]
[1759730116431,5.09681769,232.19,232.18,33.39788583]
[1759730116827,0.1,232.19,232.18,33.39788583]
[1759730121120,0.1,232.19,232.18,37.70488901]
[1759730123330,0.1,232.19,232.18,37.72297456]
[1759730124852,0.71,232.28,232.18,62.93692195]
[1759730125030,0.71,232.28,232.22,20.8]
[1759730125354,0.71,232.28,232.23,33.37597138]
[1759730125515,0.71,232.28,232.24,2.85597138]
[1759730125822,0.71,232.27,232.25,33.37597138]
[1759730126026,10.87647521,232.36,232.26,2.85597138]
[1759730126027,0.71,232.3,232.26,2.85597138]
[1759730126232,0.71,232.3,232.22,20.8]
[1759730126233,15.06477854,232.33,232.27,33.37597138]
[1759730126451,0.71,232.29,232.27,30.52]
[1759730126837,4.3045752,232.32,232.28,2.85133405]
[1759730127141,3.21368912,232.31,232.29,30.5]
[1759730127438,3.21368912,232.3,232.23,25.10607587]
[1759730127642,3.21368912,232.29,232.24,33.35010282]
[1759730127825,3.92368912,232.28,232.25,2.85010282]
[1759730128032,3.21368912,232.27,232.26,33.35010282]
[1759730128745,3.21368912,232.29,232.26,33.35010282]
[1759730128937,3.21368912,232.28,232.27,2.85010282]
[1759730130426,21.61241908,232.43,232.27,23.65010282]
[1759730130635,3.91883366,232.37,232.28,33.35010282]
[1759730130830,3.91883366,232.37,232.29,2.85010282]
[1759730130831,3.91883366,232.36,232.29,2.85010282]
[1759730131140,3.91883366,232.35,232.3,33.33010282]
[1759730131339,3.91883366,232.34,232.31,33.33010282]
[1759730131540,3.91883366,232.33,232.31,30.48]
[1759730131752,3.20883366,232.32,232.31,30.48]
[1759730131941,3.20883366,232.32,232.31,33.32382824]
[1759730132335,0.71,232.32,232.31,30.48]
[1759730132531,3.91883366,232.32,232.31,30.48]
[1759730133851,3.91883366,232.32,232.27,20.8]
[1759730134058,0.71,232.32,232.28,33.32139765]
[1759730134261,0.66,232.31,232.29,2.84139765]
[1759730134457,0.66,232.3,232.27,20.8]
[1759730134670,3.86297356,232.29,232.2,4.30649398]
[1759730134961,0.66,232.29,232.21,33.32186811]
[1759730135162,0.66,232.29,232.22,2.84186811]
[1759730135369,0.66,232.29,232.23,2.84186811]
[1759730135657,4.30514895,232.28,232.24,33.32186811]
[1759730135953,4.96514895,232.28,232.25,2.84186811]
[1759730136249,4.96514895,232.28,232.26,2.84186811]
[1759730136437,4.30514895,232.28,232.27,30.48]
[1759730136642,0.66,232.28,232.27,30.48]
[1759730137045,0.66,232.28,232.22,4.30622222]
[1759730137244,0.66,232.28,232.23,33.30125561]
[1759730137448,0.66,232.27,232.24,33.30125561]
[1759730137654,0.66,232.26,232.25,33.30125561]
[1759730137859,10.76101928,232.32,232.25,33.30125561]
[1759730138032,0.66,232.28,232.26,2.84125561]
[1759730138235,10.76101928,232.32,232.27,2.84125561]
[1759730138435,3.20252221,232.31,232.28,30.46]
[1759730138844,4.30403718,232.34,232.29,2.84006086]
[1759730139061,3.20232582,232.33,232.3,2.83979925]
[1759730139244,25.10385661,232.35,232.31,30.46]
[1759730139556,3.86147364,232.34,232.31,30.46]
[1759730139748,0.66,232.33,232.31,30.46]
[1759730142774,0.66,232.33,232.25,10.76411442]
[1759730143058,0.66,232.33,232.26,2.83713426]
[1759730143362,0.66,232.33,232.27,2.83713426]
[1759730143562,0.66,232.33,232.28,2.83713426]
[1759730143760,0.66,232.33,232.29,2.83713426]
[1759730144063,4.96427117,232.33,232.3,33.27713426]
[1759730144262,0.66,232.32,232.3,30.44]
[1759730145863,0.66,232.31,232.3,30.44]
[1759730146063,0.66,232.31,232.27,4.3053306]
[1759730146262,0.66,232.3,232.28,33.25654991]
[1759730146462,0.66,232.3,232.29,2.83654991]
[1759730147066,0.66,232.32,232.29,2.83654991]
[1759730147268,0.66,232.31,232.3,2.83654991]
[1759730147441,0.66,232.31,232.23,25.94774076]
[1759730147641,4.30427117,232.33,232.24,33.23702437]
[1759730147860,0.69,232.31,232.25,2.83702437]
[1759730148068,0.69,232.31,232.26,2.83702437]
[1759730148245,0.69,232.31,232.24,30.4]
[1759730148246,0.69,232.31,232.27,2.83702437]
[1759730148448,0.69,232.31,232.28,33.23702437]
[1759730148652,0.69,232.31,232.29,33.23702437]
[1759730148868,0.69,232.31,232.3,2.83702437]
[1759730149057,0.69,232.32,232.3,2.83702437]
[1759730149263,0.69,232.32,232.29,30.4]
[1759730149460,4.30427117,232.33,232.3,2.83656412]
[1759730149645,0.69,232.32,232.29,30.4]
[1759730149970,0.69,232.32,232.3,2.83656508]
[1759730150146,0.69,232.32,232.29,30.4]
[1759730150347,4.99444047,232.32,232.3,2.83663711]
[1759730150563,4.99444047,232.32,232.29,30.4]
[1759730150765,4.99444047,232.32,232.3,2.83663948]
[1759730150942,4.99444047,232.32,232.29,30.4]
[1759730150943,4.30444047,232.32,232.29,30.4]
[1759730151143,0.69,232.31,232.3,2.83663093]
[1759730151358,0.69,232.32,232.3,2.83663093]
[1759730151570,0.69,232.32,232.31,2.83663093]
[1759730151871,25.79387239,232.35,232.31,2.83663093]
[1759730152066,0.69,232.34,232.29,30.4]
[1759730152369,0.69,232.33,232.3,2.83714572]
[1759730152558,0.69,232.33,232.31,2.83714572]
[1759730152872,0.69,232.33,232.29,30.4]
[1759730153066,0.69,232.33,232.3,2.83715219]
[1759730153372,4.30415894,232.34,232.31,33.21715219]
[1759730153558,0.69,232.33,232.31,30.38]
[1759730153758,0.69,232.32,232.31,30.38]
[1759730153960,0.69,232.32,232.31,33.21758697]
[1759730154258,4.30415894,232.34,232.31,33.21758697]
[1759730154259,4.99415894,232.34,232.31,33.21758697]
[1759730154457,0.69,232.33,232.31,30.38]
[1759730154768,0.69,232.32,232.31,30.38]
[1759730154962,0.69,232.32,232.31,33.21812716]
[1759730156253,0.69,232.32,232.31,2.83812716]
[1759730156471,4.99440771,232.32,232.31,33.25812716]
[1759730157564,4.30440771,232.32,232.31,33.25812716]
[1759730157765,8.19871104,232.32,232.31,33.25812716]
[1759730157967,8.19871104,232.32,232.31,2.83812716]
[1759730158172,8.19871104,232.32,232.31,33.23812716]
[1759730160665,3.20430333,232.32,232.31,33.23812716]
[1759730160981,3.20430333,232.33,232.31,33.23812716]
[1759730161279,3.20430333,232.33,232.32,2.83812716]
[1759730161483,4.30417167,232.34,232.32,2.83812716]
[1759730161689,0.69,232.33,232.31,30.4]
[1759730161880,0.69,232.33,232.32,2.84201338]
[1759730162263,4.99417167,232.34,232.32,2.84201338]
[1759730162463,4.99417167,232.34,232.33,2.84201338]
[1759730162772,8.20217883,232.34,232.33,2.84201338]
[1759730164978,4.3037092,232.36,232.33,2.84201338]
[1759730165180,4.3037092,232.36,232.29,3.54697836]
[1759730165181,0.69,232.34,232.29,3.54697836]
[1759730165381,3.2100827,232.33,232.3,33.2260864]
[1759730165573,3.2100827,232.33,232.31,33.2260864]
[1759730165770,3.2100827,232.33,232.32,33.2260864]
[1759730170368,3.2100827,232.33,232.32,30.38]
[1759730177900,3.2100827,232.33,232.32,34.68440771]
[1759730179295,3.2100827,232.33,232.32,30.38]
[1759730183375,3.2100827,232.33,232.32,34.68440771]
[1759730186297,3.2100827,232.33,232.32,38.23138607]
[1759730186498,0.65,232.35,232.32,38.23138607]
[1759730186802,3.22205047,232.34,232.32,33.92697836]
[1759730187099,3.22205047,232.33,232.32,30.38]
[1759730187688,3.22205047,232.33,232.32,34.68440771]
[1759730194311,0.65,232.37,232.35,20.8]
[1759730194506,0.69,232.37,232.36,30.22]
[1759730194677,0.69,232.37,232.35,24.36989469]
[1759730194678,3.9091945,232.37,232.35,24.36989469]
[1759730194885,3.2191945,232.36,232.35,24.36989469]
[1759730195187,3.2191945,232.36,232.35,54.56989469]
[1759730195386,3.2191945,232.36,232.35,58.87374663]
[1759730195608,3.90891667,232.36,232.35,58.87374663]
[1759730196318,3.90891667,232.36,232.35,51.0]
[1759730200909,3.90891667,232.36,232.35,50.98]
[1759730203208,3.90891667,232.36,232.35,55.28385194]
[1759730203209,3.21891667,232.36,232.35,55.28385194]
[1759730204908,3.21829586,232.36,232.35,55.28385194]
[1759730205106,3.90829586,232.36,232.35,55.28385194]
[1759730206295,3.90829586,232.36,232.35,58.84984039]
[1759730207393,3.21829586,232.36,232.35,58.84984039]
[1759730207597,3.21829586,232.36,232.35,55.28385194]
[1759730209505,3.21829586,232.36,232.35,66.16032715]
[1759730209703,0.1,232.38,232.35,76.91995701]
[1759730210021,3.21732105,232.37,232.35,80.13825287]
[1759730210222,0.1,232.38,232.35,46.73995701]
[1759730210406,3.21688262,232.37,232.36,30.14]
[1759730210996,3.21688262,232.37,232.35,15.18032715]
[1759730210997,3.90688262,232.37,232.35,3.56436479]
[1759730211215,4.40331407,232.38,232.36,30.16]
[1759730211216,0.1,232.38,232.36,30.16]
[1759730211532,3.21718413,232.37,232.36,30.16]
[1759730211734,3.90718413,232.37,232.36,30.16]
[1759730213119,3.90718413,232.37,232.36,50.96]
[1759730214218,3.90738145,232.37,232.36,50.96]
[1759730215313,3.90738145,232.37,232.34,3.56436479]
[1759730215643,3.90738145,232.36,232.35,30.14]
[1759730220800,3.90738145,232.36,232.35,30.12]
[1759730221939,3.90738145,232.36,232.35,34.02738145]
[1759730228726,3.90738145,232.36,232.35,37.59174624]
[1759730230109,8.21104817,232.36,232.35,34.02738145]
[1759730230317,3.90738145,232.36,232.35,34.02738145]
[1759730235441,8.21104817,232.36,232.35,3.90738145]
[1759730235726,8.21104817,232.36,232.35,30.12]
[1759730236738,8.21104817,232.36,232.33,24.36436479]
[1759730236940,3.90738145,232.35,232.31,3.56436479]
[1759730237139,3.90738145,232.34,232.32,30.12]
[1759730237444,3.90738145,232.33,232.32,30.12]
[1759730238636,3.21738145,232.33,232.32,30.12]
[1759730239022,3.21738145,232.33,232.32,34.42366672]
[1759730239229,3.90738145,232.33,232.32,34.42366672]
[1759730242842,3.21738145,232.33,232.32,42.29243922]
[1759730246144,0.69,232.37,232.32,38.72807443]
[1759730246448,0.1,232.38,232.33,3.55687472]
[1759730246449,3.90926115,232.36,232.33,3.55687472]
[1759730246629,3.21926115,232.35,232.34,30.12]
[1759730246822,3.21926115,232.35,232.34,34.42315978]
[1759730247721,3.90926115,232.35,232.34,34.42315978]
[1759730247922,3.90926115,232.35,232.34,38.72719696]
[1759730248122,3.90926115,232.35,232.34,34.42315978]
[1759730249641,3.90926115,232.35,232.34,25.10315978]
[1759730249940,3.90926115,232.35,232.34,55.22315978]
[1759730250727,3.90926115,232.35,232.34,25.10315978]
[1759730250941,3.90926115,232.35,232.34,55.22315978]
[1759730251536,3.90926115,232.35,232.34,50.92]
[1759730254940,8.21311309,232.35,232.31,3.55687472]
[1759730255142,3.90926115,232.34,232.32,30.12]
[1759730255362,3.21926115,232.33,232.32,30.12]
[1759730255652,3.90926115,232.33,232.32,30.12]
[1759730256338,3.90926115,232.33,232.32,33.67687472]
[1759730256539,3.90926115,232.33,232.32,30.12]
[1759730256739,3.90926115,232.33,232.32,33.67687472]
[1759730257256,8.21348359,232.33,232.32,30.12]
[1759730257838,3.90926115,232.33,232.32,30.12]
[1759730262859,8.21348359,232.33,232.32,30.12]
[1759730266259,3.90926115,232.33,232.32,30.12]
[1759730266463,8.21348359,232.33,232.32,30.12]
[1759730266842,3.90926115,232.33,232.32,30.12]
[1759730267262,8.21348359,232.33,232.32,30.12]
[1759730268768,8.2157315,232.33,232.32,30.12]
[1759730272569,8.2157315,232.33,232.31,3.55711078]
[1759730272869,15.0621853,232.37,232.32,30.12]
[1759730273070,3.22204626,232.36,232.32,30.12]
[1759730273277,3.89204626,232.35,232.32,30.12]
[1759730273569,3.89204626,232.34,232.32,30.12]
[1759730273771,3.89204626,232.33,232.32,30.12]
[1759730274861,8.1962687,232.33,232.32,30.12]
[1759730275563,3.22204626,232.33,232.32,33.67711078]
[1759730275763,3.22204626,232.33,232.32,30.12]
[1759730276068,3.22204626,232.33,232.32,40.87870379]
[1759730277068,3.22204626,232.33,232.32,45.1831115]
[1759730281070,3.22204626,232.33,232.32,40.87870379]
[1759730281766,3.22204626,232.33,232.32,30.12]
[1759730282074,3.22204626,232.33,232.32,34.42349471]
[1759730282456,3.22204626,232.33,232.32,38.72790242]
[1759730283572,3.22204626,232.33,232.32,34.42349471]
[1759730284579,3.89204626,232.33,232.29,25.54095118]
[1759730284877,3.89204626,232.32,232.31,20.8]
[1759730285979,3.89261215,232.32,232.31,20.8]
[1759730286180,3.89261215,232.32,232.31,24.35833585]
[1759730290885,3.89262254,232.32,232.31,24.35833585]
[1759730291386,3.89262254,232.32,232.31,54.47833585]
[1759730293657,8.19703025,232.32,232.31,54.47833585]
[1759730293956,3.89262254,232.32,232.31,33.67833585]
[1759730294483,3.89262254,232.32,232.31,30.12]
[1759730297086,8.19703025,232.32,232.31,30.12]
[1759730298279,8.19703025,232.32,232.31,3.56092643]
[1759730298493,8.19703025,232.32,232.31,30.12]
[1759730310673,18.95804953,232.32,232.31,30.1]
[1759730318702,18.95462214,232.32,232.31,30.1]
[1759730322008,7.52360286,232.32,232.31,30.1]
[1759730322582,8.21360286,232.32,232.31,30.1]
[1759730327824,18.97462214,232.32,232.25,3.56092643]
[1759730328123,3.90919515,232.31,232.26,30.1]
[1759730328421,4.30496362,232.29,232.26,30.1]
[1759730328624,3.21919515,232.28,232.26,30.1]
[1759730328923,4.30496362,232.29,232.26,30.1]
[1759730328924,3.21919515,232.27,232.26,30.1]
[1759730329918,7.52452945,232.27,232.26,30.1]
[1759730337208,3.21919515,232.27,232.26,30.1]
[1759730342336,3.21919515,232.27,232.26,34.40519882]
[1759730345333,3.21919515,232.27,232.26,37.96612525]
[1759730351439,3.21919515,232.27,232.26,38.71071849]
[1759730351625,15.06413014,232.34,232.26,34.40519882]
[1759730351939,0.69,232.3,232.28,3.56327838]
[1759730352126,3.22398702,232.29,232.28,3.56327838]
[1759730352322,3.22398702,232.29,232.28,33.64327838]
[1759730352922,3.22398702,232.29,232.28,46.56067165]
[1759730353639,3.22398702,232.29,232.28,16.48067165]
[1759730353829,3.22398702,232.29,232.28,46.56067165]
[1759730356226,3.91398702,232.29,232.28,46.56067165]
[1759730357228,3.22398702,232.29,232.28,46.56067165]
[1759730359543,8.22895064,232.29,232.28,16.48067165]
[1759730359742,8.22895064,232.29,232.28,30.08]
[1759730359946,18.99135969,232.29,232.28,30.08]
[1759730360940,8.22895064,232.29,232.28,30.08]
[1759730361143,3.92398702,232.29,232.28,30.08]
[1759730364655,8.22895064,232.29,232.28,30.08]
[1759730368640,3.22398702,232.29,232.28,30.08]
[1759730369248,3.92398702,232.29,232.28,30.08]
[1759730370961,8.22895064,232.29,232.28,30.08]
[1759730371141,3.92398702,232.29,232.28,30.08]
[1759730372060,8.22895064,232.29,232.28,30.08]
[1759730376065,8.22895064,232.29,232.25,3.56327838]
[1759730376270,3.90398702,232.28,232.26,30.08]
[1759730376466,3.22398702,232.27,232.26,30.08]
[1759730377356,8.20932132,232.27,232.26,30.08]
[1759730378267,8.20798988,232.27,232.26,30.08]
[1759730378452,8.20798988,232.27,232.25,16.48345323]
[1759730378650,4.9853343,232.27,232.26,30.08]
[1759730378846,8.20799981,232.27,232.26,30.08]
[1759730379669,7.52799981,232.27,232.26,30.08]
[1759730379853,8.20799981,232.27,232.26,30.08]
[1759730381345,7.52799981,232.27,232.26,30.08]
[1759730382249,8.20799981,232.27,232.26,30.08]
[1759730384071,7.52799981,232.27,232.26,30.08]
[1759730384267,8.20799981,232.27,232.26,30.08]
[1759730390951,3.90266551,232.27,232.26,30.08]
[1759730391146,3.22266551,232.27,232.26,30.08]
[1759730391679,3.91266551,232.27,232.26,30.08]
[1759730392979,3.22266551,232.27,232.26,30.08]
[1759730393667,3.91266551,232.27,232.26,30.08]
[1759730394165,3.22266551,232.27,232.26,30.08]
[1759730397483,3.91266551,232.27,232.26,30.08]
[1759730399482,3.22266551,232.27,232.26,30.08]
[1759730399875,3.22266551,232.27,232.26,42.99961844]
[1759730402161,3.22266551,232.27,232.26,30.08]
[1759730402962,3.22266551,232.27,232.26,34.38551967]
[1759730403278,0.69,232.34,232.29,20.8]
[1759730403481,3.91355599,232.33,232.3,30.06]
[1759730403688,3.91355599,232.32,232.3,30.06]
[1759730403882,3.22355599,232.31,232.3,30.06]
[1759730405783,3.22355599,232.31,232.3,34.3647783]
[1759730406484,3.22355599,232.31,232.3,34.36368951]
[1759730407487,3.22355599,232.31,232.3,38.66846781]
[1759730409497,3.22104376,232.31,232.3,59.46846781]
[1759730410791,3.22104376,232.31,232.3,55.16368951]
[1759730411695,3.22104376,232.31,232.3,59.46846781]
[1759730412975,3.22104376,232.31,232.3,38.66846781]
[1759730413174,4.40331797,232.38,232.33,20.8]
[1759730413376,3.90875559,232.37,232.34,30.04]
[1759730413578,3.90875559,232.36,232.34,30.04]
[1759730413795,3.90875559,232.35,232.34,30.04]
[1759730414768,3.21875559,232.35,232.34,34.34403718]
[1759730418786,3.21541718,232.35,232.34,34.34403718]
[1759730419383,3.93541718,232.35,232.34,34.34403718]
[1759730419585,3.21541718,232.35,232.34,34.34403718]
[1759730419785,3.93541718,232.35,232.34,34.34403718]
[1759730420383,3.93541718,232.35,232.34,30.04]